fUSD/lending_fUSD_20240426
["ID","MTS","AMOUNT","RATE_DAILY","PERIOD"]
[323580437,1714093864173,-552.23,0.00011506,2]
[323580438,1714093864182,-500.0,0.00011506,2]
[323580439,1714093864195,-546.05,0.00011506,2]
[323580440,1714093864204,-500.0,0.00011506,2]
[323580441,1714093864214,-500.0,0.00011506,2]
[323580442,1714093864223,-500.0,0.00011506,2]
[323580443,1714093864233,-1358.35,0.00011506,2]
[323580444,1714093864243,-500.0,0.00011506,2]
[323580445,1714093864252,-500.0,0.00011506,2]
[323580446,1714093864261,-500.0,0.00011506,2]
[323580447,1714093864271,-610.37,0.00011506,2]
[323580448,1714093864280,-651.92,0.00011506,2]
[323580449,1714093864290,-970.46,0.00011506,2]
[323580450,1714093864299,-847.49,0.00011506,2]
[323580451,1714093864308,-500.0,0.00011506,2]
[323580452,1714093864318,-500.0,0.00011506,2]
[323580453,1714093864327,-500.0,0.00011506,2]
[323580454,1714093864337,-500.0,0.00011506,2]
[323580455,1714093864346,-523.77,0.00011506,2]
[323580456,1714093864356,-561.56,0.00011506,2]
[323580457,1714093864365,-500.0,0.00011506,2]
[323580458,1714093864375,-777.84,0.00011506,2]
[323580459,1714093864384,-928.84,0.00011506,2]
[323580460,1714093864393,-1210.92,0.00011506,2]
[323580461,1714093864403,-500.0,0.00011506,2]
[323580462,1714093864412,-500.0,0.00011506,2]
[323580463,1714093864422,-500.0,0.00011506,2]
[323580464,1714093864432,-751.46,0.00011506,2]
[323580465,1714093864443,-2180.38,0.00011506,2]
[323580466,1714093864452,-500.0,0.00011506,2]
[323580467,1714093864461,-4116.92,0.00011506,2]
[323580468,1714093864470,-500.0,0.00011506,2]
[323580469,1714093864479,-913.07,0.00011506,2]
[323580470,1714093864488,-647.14,0.00011506,2]
[323580471,1714093864497,-500.0,0.00011506,2]
[323580472,1714093864507,-852.39,0.00011506,2]
[323580473,1714093864516,-766.14,0.00011506,2]
[323580474,1714093864525,-500.0,0.00011506,2]
[323580475,1714093864534,-500.0,0.00011506,2]
[323580476,1714093864546,-500.0,0.00011506,2]
[323580477,1714093864555,-1272.01,0.00011506,2]
[323580478,1714093864564,-629.47,0.00011506,2]
[323580479,1714093864573,-500.0,0.00011506,2]
[323580480,1714093864583,-500.0,0.00011506,2]
[323580481,1714093864592,-967.95,0.00011506,2]
[323580482,1714093864602,-1219.7,0.00011506,2]
[323580483,1714093864611,-595.9,0.00011506,2]
[323580484,1714093864620,-557.88,0.00011506,2]
[323580485,1714093864630,-500.0,0.00011506,2]
[323580486,1714093864639,-551.49,0.00011506,2]
[323580487,1714093864649,-613.53,0.00011506,2]
[323580488,1714093864657,-500.0,0.00011506,2]
[323580489,1714093864666,-3064.89,0.00011506,2]
[323580490,1714093864676,-500.0,0.00011506,2]
[323580491,1714093864686,-500.0,0.00011506,2]
[323580492,1714093864695,-878.81,0.00011506,2]
[323580493,1714093864704,-500.0,0.00011506,2]
[323580494,1714093864714,-500.0,0.00011506,2]
[323580495,1714093864723,-500.0,0.00011506,2]
[323580496,1714093864733,-500.0,0.00011506,2]
[323580497,1714093864743,-500.0,0.00011506,2]
[323580498,1714093864752,-538.06,0.00011506,2]
[323580499,1714093864763,-500.0,0.00011506,2]
[323580500,1714093864772,-500.0,0.00011506,2]
[323580501,1714093864782,-1135.24,0.00011506,2]
[323580502,1714093864791,-1106.19,0.00011506,2]
[323580503,1714093864800,-500.0,0.00011506,2]
[323580504,1714093864809,-1685.81,0.00011506,2]
[323580505,1714093864818,-917.6,0.00011506,2]
[323580506,1714093864827,-530.79,0.00011506,2]
[323580507,1714093864836,-500.0,0.00011506,2]
[323580508,1714093864844,-963.66,0.00011506,2]
[323580509,1714093864854,-500.0,0.00011506,2]
[323580510,1714093864864,-500.0,0.00011506,2]
[323580511,1714093864875,-500.0,0.00011506,2]
[323580512,1714093864886,-627.53,0.00011506,2]
[323580513,1714093864895,-1307.96,0.00011506,2]
[323580514,1714093864905,-683.33,0.00011506,2]
[323580515,1714093864914,-500.0,0.00011506,2]
[323580516,1714093864924,-500.0,0.00011506,2]
[323580517,1714093864935,-500.0,0.00011506,2]
[323580518,1714093864945,-500.0,0.00011506,2]
[323580519,1714093864954,-500.0,0.00011506,2]
[323580520,1714093864963,-500.0,0.00011506,2]
[323580521,1714093864972,-500.0,0.00011506,2]
[323580522,1714093864982,-156.03331134,0.00011506,2]
[323580523,1714093864992,-500.0,0.00011506,2]
[323580524,1714093865003,-500.0,0.00011506,2]
[323580525,1714093865012,-1676.51,0.00011506,2]
[323580526,1714093865021,-500.0,0.00011506,2]
[323580527,1714093865030,-500.0,0.00011506,2]
[323580528,1714093865039,-500.0,0.00011506,2]
[323580529,1714093865049,-500.0,0.00011506,2]
[323580530,1714093865058,-840.73,0.00011506,2]
[323580531,1714093865067,-1825.32,0.00011506,2]
[323580532,1714093865076,-500.0,0.00011506,2]
[323580533,1714093865085,-1065.33,0.00011506,2]
[323580534,1714093865094,-582.24,0.00011506,2]
[323580535,1714093865103,-2686.14,0.00011506,2]
[323580536,1714093865113,-624.08,0.00011506,2]
[323580537,1714093865122,-500.0,0.00011506,2]
[323580538,1714093865131,-500.0,0.00011506,2]
[323580539,1714093865140,-3151.16,0.00011506,2]
[323580540,1714093865150,-500.0,0.00011506,2]
[323580541,1714093865160,-500.0,0.00011506,2]
[323580542,1714093865169,-500.0,0.00011506,2]
[323580543,1714093865178,-989.28,0.00011506,2]
[323580544,1714093865190,-500.0,0.00011506,2]
[323580545,1714093865200,-500.0,0.00011506,2]
[323580546,1714093865209,-910.62,0.00011506,2]
[323580547,1714093865219,-500.0,0.00011506,2]
[323580548,1714093865228,-500.0,0.00011506,2]
[323580549,1714093865238,-500.0,0.00011506,2]
[323580550,1714093865247,-500.0,0.00011506,2]
[323580551,1714093865257,-562.64,0.00011506,2]
[323580552,1714093865266,-517.64,0.00011506,2]
[323580553,1714093865276,-500.0,0.00011506,2]
[323580554,1714093865286,-500.0,0.00011506,2]
[323580555,1714093865295,-1045.5,0.00011506,2]
[323580556,1714093865305,-3898.31,0.00011506,2]
[323580557,1714093865315,-500.0,0.00011506,2]
[323580558,1714093865324,-7599.2,0.00011506,2]
[323580559,1714093865334,-5127.59,0.00011506,2]
[323580560,1714093865343,-1179.16,0.00011506,2]
[323580561,1714093865352,-914.42,0.00011506,2]
[323580562,1714093865361,-2523.14,0.00011506,2]
[323580563,1714093865370,-3281.45,0.00011506,2]
[323580564,1714093865380,-4972.4668599,0.00011542,2]
[323580565,1714093865390,-414.6,0.0001155,2]
[323580566,1714093865399,-500.0,0.00011593,2]
[323580567,1714093865409,-500.0,0.00011593,2]
[323580568,1714093865419,-500.0,0.00011593,2]
[323580569,1714093865428,-500.0,0.00011593,2]
[323580570,1714093865439,-500.0,0.00011593,2]
[323580571,1714093865450,-500.0,0.00011593,2]
[323580572,1714093865460,-500.0,0.00011593,2]
[323580573,1714093865470,-500.0,0.00011593,2]
[323580574,1714093865479,-1056.0,0.00011653,2]
[323580575,1714093865489,-4972.4668599,0.00011678,2]
[323580576,1714093865498,-1025.0,0.00011678,2]
[323580577,1714093865508,-414.6,0.0001169,2]
[323580578,1714093865517,-500.0,0.0001178,2]
[323580579,1714093865526,-639.84,0.0001178,2]
[323580580,1714093865536,-500.0,0.0001178,2]
[323580581,1714093865547,-524.9,0.0001178,2]
[323580582,1714093865557,-500.0,0.0001178,2]
[323580583,1714093865566,-500.0,0.0001178,2]
[323580584,1714093865575,-500.0,0.0001178,2]
[323580585,1714093865585,-500.0,0.0001178,2]
[323580586,1714093865594,-500.0,0.0001178,2]
[323580587,1714093865603,-500.0,0.0001178,2]
[323580588,1714093865613,-500.0,0.0001178,2]
[323580589,1714093865622,-500.0,0.0001178,2]
[323580590,1714093865633,-500.0,0.0001178,2]
[323580591,1714093865642,-500.0,0.0001178,2]
[323580592,1714093865652,-500.0,0.0001178,2]
[323580593,1714093865661,-269.54854086,0.0001178,2]
[323580594,1714093865671,-500.0,0.0001178,2]
[323580595,1714093865681,-500.0,0.0001178,2]
[323580596,1714093865692,-500.0,0.0001178,2]
[323580597,1714093865702,-500.0,0.0001178,2]
[323580598,1714093865711,-500.0,0.0001178,2]
[323580599,1714093865721,-500.0,0.0001178,2]
[323580600,1714093865730,-500.0,0.0001178,2]
[323580601,1714093865740,-500.0,0.0001178,2]
[323580602,1714093865750,-500.0,0.0001178,2]
[323580603,1714093865759,-500.0,0.0001178,2]
[323580604,1714093865769,-500.0,0.0001178,2]
[323580605,1714093865778,-540.57706314,0.0001178,2]
[323580606,1714093865787,-500.0,0.0001178,2]
[323580607,1714093865796,-500.0,0.0001178,2]
[323580608,1714093865806,-500.0,0.0001178,2]
[323580609,1714093865815,-500.0,0.0001178,2]
[323580610,1714093865825,-500.0,0.0001178,2]
[323580611,1714093865835,-500.0,0.0001178,2]
[323580612,1714093865844,-500.0,0.0001178,2]
[323580613,1714093865854,-500.0,0.0001178,2]
[323580614,1714093865863,-500.0,0.0001178,2]
[323580615,1714093865872,-519.89,0.0001178,2]
[323580616,1714093865881,-500.0,0.0001178,2]
[323580617,1714093865890,-500.0,0.0001178,2]
[323580618,1714093865899,-500.0,0.0001178,2]
[323580619,1714093865909,-500.0,0.0001178,2]
[323580620,1714093865918,-500.0,0.0001178,2]
[323580621,1714093865927,-430.2,0.0001178,2]
[323580622,1714093865938,-500.0,0.0001178,2]
[323580623,1714093865947,-764.97,0.0001178,2]
[323580624,1714093865957,-500.0,0.0001178,2]
[323580625,1714093865966,-500.0,0.0001178,2]
[323580626,1714093865975,-500.0,0.0001178,2]
[323580627,1714093865984,-500.0,0.0001178,2]
[323580628,1714093865993,-500.0,0.0001178,2]
[323580629,1714093866003,-500.0,0.0001178,2]
[323580630,1714093866012,-500.0,0.0001178,2]
[323580631,1714093866021,-500.0,0.0001178,2]
[323580632,1714093866031,-500.0,0.0001178,2]
[323580633,1714093866041,-500.0,0.0001178,2]
[323580634,1714093866050,-500.0,0.0001178,2]
[323580635,1714093866060,-500.0,0.0001178,2]
[323580636,1714093866069,-500.0,0.0001178,2]
[323580637,1714093866079,-500.0,0.0001178,2]
[323580638,1714093866088,-500.0,0.0001178,2]
[323580639,1714093866097,-500.0,0.0001178,2]
[323580640,1714093866107,-500.0,0.0001178,2]
[323580641,1714093866117,-500.0,0.0001178,2]
[323580642,1714093866127,-500.0,0.0001178,2]
[323580643,1714093866137,-500.0,0.0001178,2]
[323580644,1714093866146,-500.0,0.0001178,2]
[323580645,1714093866157,-500.0,0.0001178,2]
[323580646,1714093866167,-1033.26,0.0001178,2]
[323580647,1714093866177,-618.97,0.0001178,2]
[323580648,1714093866190,-500.0,0.0001178,2]
[323580649,1714093866200,-940.96,0.0001178,2]
[323580650,1714093866211,-500.0,0.0001178,2]
[323580651,1714093866222,-216.64650639,0.0001178,2]
[323580652,1714093866233,-500.0,0.0001178,2]
[323580653,1714093866243,-500.0,0.0001178,2]
[323580654,1714093866253,-500.0,0.0001178,2]
[323580655,1714093866264,-500.0,0.0001178,2]
[323580656,1714093866274,-860.02,0.0001178,2]
[323580657,1714093866284,-500.0,0.0001178,2]
[323580658,1714093866294,-613.73917614,0.0001178,2]
[323580659,1714093866305,-500.0,0.0001178,2]
[323580660,1714093866315,-500.0,0.0001178,2]
[323580661,1714093866324,-648.67,0.0001178,2]
[323580662,1714093866334,-500.0,0.0001178,2]
[323580663,1714093866344,-951.88,0.0001178,2]
[323580664,1714093866355,-500.0,0.0001178,2]
[323580665,1714093866365,-500.0,0.0001178,2]
[323580666,1714093866376,-500.0,0.0001178,2]
[323580667,1714093866386,-500.0,0.0001178,2]
[323580668,1714093866396,-500.0,0.0001178,2]
[323580669,1714093866406,-998.12,0.0001178,2]
[323580670,1714093866417,-500.0,0.0001178,2]
[323580671,1714093866428,-981.87,0.0001178,2]
[323580672,1714093866444,-500.0,0.0001178,2]
[323580673,1714093866455,-500.0,0.0001178,2]
[323580674,1714093866466,-687.72,0.0001178,2]
[323580675,1714093866478,-500.0,0.0001178,2]
[323580676,1714093866488,-500.0,0.0001178,2]
[323580677,1714093866500,-554.08,0.0001178,2]
[323580678,1714093866512,-319.68,0.0001178,2]
[323580679,1714093866523,-500.0,0.0001178,2]
[323580680,1714093866534,-500.0,0.0001178,2]
[323580681,1714093866549,-500.0,0.0001178,2]
[323580682,1714093866664,-500.0,0.0001178,2]
[323580683,1714093866693,-777.81,0.0001178,2]
[323580684,1714093866702,-500.0,0.0001178,2]
[323580685,1714093866712,-500.0,0.0001178,2]
[323580686,1714093866722,-500.0,0.0001178,2]
[323580687,1714093866732,-500.0,0.0001178,2]
[323580688,1714093866742,-500.0,0.0001178,2]
[323580689,1714093866751,-500.0,0.0001178,2]
[323580690,1714093866761,-500.0,0.0001178,2]
[323580691,1714093866771,-500.0,0.0001178,2]
[323580692,1714093866781,-500.0,0.0001178,2]
[323580693,1714093866791,-645.15,0.0001178,2]
[323580694,1714093866801,-500.0,0.0001178,2]
[323580695,1714093866811,-500.0,0.0001178,2]
[323580696,1714093866821,-500.0,0.0001178,2]
[323580697,1714093866831,-500.0,0.0001178,2]
[323580698,1714093866841,-500.0,0.0001178,2]
[323580699,1714093866851,-500.0,0.0001178,2]
[323580700,1714093866860,-500.0,0.0001178,2]
[323580701,1714093866870,-715.47,0.0001178,2]
[323580702,1714093866880,-500.0,0.0001178,2]
[323580703,1714093866889,-500.0,0.0001178,2]
[323580704,1714093866899,-500.0,0.0001178,2]
[323580705,1714093866909,-500.0,0.0001178,2]
[323580706,1714093866919,-500.0,0.0001178,2]
[323580707,1714093866929,-500.0,0.0001178,2]
[323580708,1714093866943,-500.0,0.0001178,2]
[323580709,1714093866953,-500.0,0.0001178,2]
[323580710,1714093866963,-500.0,0.0001178,2]
[323580711,1714093866973,-555.09,0.0001178,2]
[323580712,1714093866983,-965.47,0.0001178,2]
[323580713,1714093866992,-500.0,0.0001178,2]
[323580714,1714093867003,-500.0,0.0001178,2]
[323580715,1714093867012,-500.0,0.0001178,2]
[323580716,1714093867022,-643.81,0.0001178,2]
[323580717,1714093867032,-572.71546335,0.0001178,2]
[323580718,1714093867041,-500.0,0.0001178,2]
[323580719,1714093867051,-500.0,0.0001178,2]
[323580720,1714093867060,-699.7,0.0001178,2]
[323580721,1714093867070,-1140.73,0.0001178,2]
[323580722,1714093867081,-435.58,0.0001178,2]
[323580723,1714093867092,-500.0,0.0001178,2]
[323580724,1714093867103,-500.0,0.0001178,2]
[323580725,1714093867113,-500.0,0.0001178,2]
[323580726,1714093867123,-500.0,0.0001178,2]
[323580727,1714093867133,-500.0,0.0001178,2]
[323580728,1714093867144,-500.0,0.0001178,2]
[323580729,1714093867155,-500.0,0.0001178,2]
[323580730,1714093867165,-500.0,0.0001178,2]
[323580731,1714093867175,-764.13,0.0001178,2]
[323580732,1714093867185,-500.0,0.0001178,2]
[323580733,1714093867202,-500.0,0.0001178,2]
[323580734,1714093867211,-500.0,0.0001178,2]
[323580735,1714093867221,-500.0,0.0001178,2]
[323580736,1714093867231,-500.0,0.0001178,2]
[323580737,1714093867240,-500.0,0.0001178,2]
[323580738,1714093867251,-190.89693572,0.0001178,2]
[323580739,1714093867260,-500.0,0.0001178,2]
[323580740,1714093867271,-500.0,0.0001178,2]
[323580741,1714093867282,-500.0,0.0001178,2]
[323580742,1714093867293,-500.0,0.0001178,2]
[323580743,1714093867304,-500.0,0.0001178,2]
[323580744,1714093867314,-500.0,0.0001178,2]
[323580745,1714093867324,-500.0,0.0001178,2]
[323580746,1714093867334,-500.0,0.0001178,2]
[323580747,1714093867345,-500.0,0.0001178,2]
[323580748,1714093867355,-500.0,0.0001178,2]
[323580749,1714093867366,-500.0,0.0001178,2]
[323580750,1714093867376,-500.0,0.0001178,2]
[323580751,1714093867387,-726.11,0.0001178,2]
[323580752,1714093867397,-995.85,0.0001178,2]
[323580753,1714093867408,-500.0,0.0001178,2]
[323580754,1714093867418,-500.0,0.0001178,2]
[323580755,1714093867429,-500.0,0.0001178,2]
[323580756,1714093867443,-1118.04,0.0001178,2]
[323580757,1714093867453,-500.0,0.0001178,2]
[323580758,1714093867463,-500.0,0.0001178,2]
[323580759,1714093867473,-500.0,0.0001178,2]
[323580760,1714093867483,-500.0,0.0001178,2]
[323580761,1714093867493,-500.0,0.0001178,2]
[323580762,1714093867502,-500.0,0.0001178,2]
[323580763,1714093867512,-500.0,0.0001178,2]
[323580764,1714093867521,-500.0,0.0001178,2]
[323580765,1714093867531,-500.0,0.0001178,2]
[323580766,1714093867542,-500.0,0.0001178,2]
[323580767,1714093867554,-500.0,0.0001178,2]
[323580768,1714093867563,-500.0,0.0001178,2]
[323580769,1714093867573,-500.0,0.0001178,2]
[323580770,1714093867582,-893.31,0.0001178,2]
[323580771,1714093867592,-500.0,0.0001178,2]
[323580772,1714093867601,-500.0,0.0001178,2]
[323580773,1714093867610,-500.0,0.0001178,2]
[323580774,1714093867620,-500.0,0.0001178,2]
[323580775,1714093867630,-500.0,0.0001178,2]
[323580776,1714093867640,-500.0,0.0001178,2]
[323580777,1714093867650,-500.0,0.0001178,2]
[323580778,1714093867659,-388.42916021,0.0001178,2]
[323580779,1714093867684,-111.57083979,0.0001178,2]
[323580780,1714093867695,-500.0,0.0001178,2]
[323580781,1714093867704,-500.0,0.0001178,2]
[323580782,1714093867714,-63.75352699,0.0001178,2]
[323580783,1714093867806,-436.24647301,0.0001178,2]
[323580784,1714093867816,-224.0229365,0.0001178,2]
[323580785,1714093867825,-500.0,0.0001178,2]
[323580786,1714093867835,-597.30944508,0.0001178,2]
[323580787,1714093867845,-500.0,0.0001178,2]
[323580788,1714093867855,-150.0,0.0001178,2]
[323580789,1714093867864,-558.83,0.0001178,2]
[323580790,1714093867874,-500.0,0.0001178,2]
[323580791,1714093867883,-500.0,0.0001178,2]
[323580792,1714093867893,-500.0,0.0001178,2]
[323580793,1714093867903,-500.0,0.0001178,2]
[323580794,1714093867912,-500.0,0.0001178,2]
[323580795,1714093867921,-500.0,0.0001178,2]
[323580796,1714093867931,-500.0,0.0001178,2]
[323580797,1714093867944,-500.0,0.0001178,2]
[323580798,1714093867953,-500.0,0.0001178,2]
[323580799,1714093867963,-500.0,0.0001178,2]
[323580800,1714093867973,-500.0,0.0001178,2]
[323580801,1714093867982,-500.0,0.0001178,2]
[323580802,1714093867992,-500.0,0.0001178,2]
[323580803,1714093868001,-500.0,0.0001178,2]
[323580804,1714093868011,-500.0,0.0001178,2]
[323580805,1714093868021,-500.0,0.0001178,2]
[323580806,1714093868031,-500.0,0.0001178,2]
[323580807,1714093868041,-791.69,0.0001178,2]
[323580808,1714093868050,-500.0,0.0001178,2]
[323580809,1714093868060,-707.72,0.0001178,2]
[323580810,1714093868069,-500.0,0.0001178,2]
[323580811,1714093868079,-268.21,0.0001178,2]
[323580812,1714093868088,-664.0,0.0001178,2]
[323580813,1714093868098,-500.0,0.0001178,2]
[323580814,1714093868107,-664.67,0.0001178,2]
[323580815,1714093868117,-500.0,0.0001178,2]
[323580816,1714093868127,-500.0,0.0001178,2]
[323580817,1714093868136,-500.0,0.0001178,2]
[323580818,1714093868146,-767.45,0.0001178,2]
[323580819,1714093868157,-500.0,0.0001178,2]
[323580820,1714093868167,-500.0,0.0001178,2]
[323580821,1714093868177,-597.29,0.0001178,2]
[323580822,1714093868188,-500.0,0.0001178,2]
[323580823,1714093868197,-500.0,0.0001178,2]
[323580824,1714093868207,-500.0,0.0001178,2]
[323580825,1714093868216,-424.07,0.0001178,2]
[323580826,1714093868226,-500.0,0.0001178,2]
[323580827,1714093868235,-500.0,0.0001178,2]
[323580828,1714093868245,-500.0,0.0001178,2]
[323580829,1714093868255,-500.0,0.0001178,2]
[323580830,1714093868264,-500.0,0.0001178,2]
[323580831,1714093868273,-500.0,0.0001178,2]
[323580832,1714093868283,-500.0,0.0001178,2]
[323580833,1714093868293,-999.41,0.0001178,2]
[323580834,1714093868302,-500.0,0.0001178,2]
[323580835,1714093868312,-500.0,0.0001178,2]
[323580836,1714093868322,-500.0,0.0001178,2]
[323580837,1714093868331,-500.0,0.0001178,2]
[323580838,1714093868341,-500.0,0.0001178,2]
[323580839,1714093868351,-500.0,0.0001178,2]
[323580840,1714093868361,-500.0,0.0001178,2]
[323580841,1714093868370,-578.74,0.0001178,2]
[323580842,1714093868380,-500.0,0.0001178,2]
[323580843,1714093868390,-596.22,0.0001178,2]
[323580844,1714093868399,-500.0,0.0001178,2]
[323580845,1714093868409,-500.0,0.0001178,2]
[323580846,1714093868419,-1043.18,0.0001178,2]
[323580847,1714093868428,-381.27269628,0.0001178,2]
[323580848,1714093869693,-500.0,0.00010958,2]
[323580849,1714093869703,-500.0,0.00010958,2]
[323580850,1714093869713,-118.72730372,0.0001178,2]
[323580851,1714093869723,-500.0,0.0001178,2]
[323580852,1714093869734,-500.0,0.0001178,2]
[323580853,1714093869743,-500.0,0.0001178,2]
[323580854,1714093869753,-500.0,0.0001178,2]
[323580855,1714093869762,-589.71,0.0001178,2]
[323580856,1714093869772,-829.05,0.0001178,2]
[323580857,1714093869781,-500.0,0.0001178,2]
[323580858,1714093869791,-500.0,0.0001178,2]
[323580859,1714093869801,-500.0,0.0001178,2]
[323580860,1714093869810,-500.0,0.0001178,2]
[323580861,1714093869820,-523.74,0.0001178,2]
[323580862,1714093869829,-3.03009628,0.0001178,2]
[323580863,1714093869861,-496.96990372,0.0001178,2]
[323580864,1714093869871,-500.0,0.0001178,2]
[323580865,1714093869880,-168.17442207,0.0001178,2]
[323580866,1714093869895,-331.82557793,0.0001178,2]
[323580867,1714093869905,-500.0,0.0001178,2]
[323580868,1714093869914,-500.0,0.0001178,2]
[323580869,1714093869924,-593.93,0.0001178,2]
[323580870,1714093869933,-500.0,0.0001178,2]
[323580871,1714093869945,-500.0,0.0001178,2]
[323580872,1714093869955,-500.0,0.0001178,2]
[323580873,1714093869965,-500.0,0.0001178,2]
[323580874,1714093869974,-500.0,0.0001178,2]
[323580875,1714093869984,-500.0,0.0001178,2]
[323580876,1714093869993,-619.38,0.0001178,2]
[323580877,1714093870003,-500.0,0.0001178,2]
[323580878,1714093870012,-500.0,0.0001178,2]
[323580879,1714093870021,-500.0,0.0001178,2]
[323580880,1714093870031,-612.83,0.0001178,2]
[323580881,1714093870041,-693.35,0.0001178,2]
[323580882,1714093870050,-500.0,0.0001178,2]
[323580883,1714093870060,-500.0,0.0001178,2]
[323580884,1714093870070,-500.0,0.0001178,2]
[323580885,1714093870080,-500.0,0.0001178,2]
[323580886,1714093870089,-278.69621335,0.0001178,2]
[323580887,1714093870100,-500.0,0.0001178,2]
[323580888,1714093870110,-500.0,0.0001178,2]
[323580889,1714093870120,-500.0,0.0001178,2]
[323580890,1714093870130,-500.0,0.0001178,2]
[323580891,1714093870140,-500.0,0.0001178,2]
[323580892,1714093870150,-500.0,0.0001178,2]
[323580893,1714093870161,-151.0,0.0001178,2]
[323580894,1714093870170,-500.0,0.0001178,2]
[323580895,1714093870180,-118.98820872,0.0001178,2]
[323580896,1714094392886,557.65,8.634e-05,2]
[323580897,1714094880730,529.76,8.219e-05,2]
[323580898,1714095024591,1005.93186626,8.219e-05,2]
[323580900,1714095032351,-155.0,9.641e-05,2]
[323580901,1714095032361,-2485.33598669,9.642e-05,2]
[323580905,1714095038050,-2514.66401331,9.642e-05,2]
[323580906,1714095038061,-5000.0,9.642e-05,2]
[323580907,1714095038070,-5000.0,9.642e-05,2]
[323580908,1714095038083,-2484.50198669,9.642e-05,2]
[323580909,1714095038102,-2515.49801331,9.642e-05,2]
[323580910,1714095038111,-250.0,9.792e-05,2]
[323580911,1714095038122,-193.76,9.796e-05,2]
[323580912,1714095038132,-231.84,9.884e-05,2]
[323580913,1714095038141,-356.71,9.928e-05,2]
[323580914,1714095038151,-167.4,9.958e-05,2]
[323580915,1714095038162,-150.0,0.00010194,2]
[323580916,1714095038172,-150.0,0.00010224,2]
[323580917,1714095038182,-150.0,0.00010331,2]
[323580918,1714095038191,-150.0,0.00010375,2]
[323580919,1714095038201,-150.99,0.00010375,2]
[323580920,1714095038211,-499.99,0.00010375,2]
[323580921,1714095038220,-358.44,0.00010375,2]
[323580922,1714095038230,-150.0,0.00010454,2]
[323580923,1714095038240,-529.76,0.00010465,2]
[323580924,1714095038249,-150.0,0.00010484,2]
[323580925,1714095038259,-150.0,0.00010484,2]
[323580926,1714095038268,-150.0,0.00010555,2]
[323580927,1714095038277,-1778.4325,0.00010556,2]
[323580928,1714095038287,-3380.3266,0.00010556,2]
[323580929,1714095038297,-2625.8418,0.00010556,2]
[323580930,1714095038306,-150.0,0.0001057,2]
[323580931,1714095038315,-150.0,0.00010587,2]
[323580932,1714095038325,-506.53,0.00010701,2]
[323580933,1714095038340,-150.0,0.00010731,2]
[323580934,1714095038349,-150.0,0.00010743,2]
[323580935,1714095038359,-187.68425763,0.00010846,2]
[323580936,1714095038369,-666.1619,0.00010856,2]
[323580937,1714095038378,-244.41743057,0.00010858,2]
[323580938,1714095038387,-10000.0,0.00010858,2]
[323580939,1714095038397,-7135.5633,0.00010858,2]
[323580940,1714095038407,-150.0,0.00010906,2]